bitfinex/quotes_BTCUSD_20230404
["timestamp","ask_amount","ask_price","bid_price","bid_amount"]
[1680636796644,0.02299,28119.0,28118.0,3.71767026]
[1680636796875,0.02299,28119.0,28118.0,3.74567026]
[1680636797097,0.02299,28119.0,28118.0,3.61846072]
[1680636797547,0.02299,28119.0,28118.0,3.74567026]
[1680636798197,0.02299,28119.0,28118.0,3.61846072]
[1680636799605,0.02299,28119.0,28118.0,3.04479257]
[1680636799807,0.02299,28119.0,28118.0,2.96014407]
[1680636800012,0.19299,28119.0,28118.0,2.96014407]
[1680636800347,0.19299,28119.0,28118.0,2.59604256]
[1680636800644,0.19299,28119.0,28118.0,2.62668256]
[1680636800867,0.19299,28119.0,28118.0,2.92650256]
[1680636801098,0.19299,28119.0,28118.0,3.26285587]
[1680636801556,0.19299,28119.0,28118.0,3.23485587]
[1680636801774,0.19299,28119.0,28118.0,3.26285587]
[1680636801991,0.19299,28119.0,28118.0,3.23485587]
[1680636802226,0.19299,28119.0,28118.0,2.92650256]
[1680636802452,0.19299,28119.0,28118.0,2.89850256]
[1680636802687,0.19299,28119.0,28118.0,2.92650256]
[1680636803342,0.19299,28119.0,28118.0,2.89850256]
[1680636803563,0.19299,28119.0,28118.0,2.92650256]
[1680636803973,0.19299,28119.0,28118.0,3.01127106]
[1680636804420,0.19299,28119.0,28118.0,2.98327106]
[1680636804640,0.19299,28119.0,28118.0,3.42982092]
[1680636804853,0.19299,28119.0,28118.0,3.40182092]
[1680636805070,0.19299,28119.0,28118.0,3.01127106]
[1680636805292,0.19299,28119.0,28118.0,2.98327106]
[1680636805746,0.19299,28119.0,28118.0,3.01127106]
[1680636805935,0.19299,28119.0,28118.0,3.1104806]
[1680636806199,0.19299,28119.0,28118.0,3.1384806]
[1680636806656,0.19299,28119.0,28118.0,3.59472123]
[1680636806869,0.19299,28119.0,28118.0,3.46751169]
[1680636807394,0.19299,28119.0,28118.0,3.01127106]
[1680636807592,0.19299,28119.0,28118.0,3.47163689]
[1680636807727,0.19299,28119.0,28118.0,3.59884643]
[1680636807943,0.19299,28119.0,28118.0,3.47163689]
[1680636809189,0.19299,28119.0,28118.0,2.37175689]
[1680636809389,0.19299,28119.0,28118.0,2.37163689]
[1680636809964,0.19299,28119.0,28118.0,1.86556839]
[1680636810343,0.1935,28119.0,28118.0,1.86556839]
[1680636810563,0.19299,28119.0,28118.0,1.86556839]
[1680636811337,0.19299,28119.0,28118.0,1.94243689]
[1680636811605,0.19299,28119.0,28118.0,2.06964643]
[1680636811862,0.19299,28119.0,28118.0,1.94243689]
[1680636812080,0.19299,28119.0,28118.0,2.06964643]
[1680636813751,0.19299,28119.0,28118.0,2.15448521]
[1680636814446,0.19299,28119.0,28118.0,1.98487793]
[1680636814676,0.19299,28119.0,28118.0,2.06967804]
[1680636815134,0.19299,28119.0,28118.0,1.98487793]
[1680636815828,0.19299,28119.0,28118.0,2.15448521]
[1680636817071,0.19299,28119.0,28118.0,2.02727567]
[1680636817313,0.19299,28119.0,28118.0,3.08820984]
[1680636817990,0.19299,28119.0,28118.0,3.30035783]
[1680636819127,0.19299,28119.0,28118.0,3.14865721]
[1680636819128,0.08089185,28119.0,28118.0,3.14865721]
[1680636819340,0.08089185,28119.0,28118.0,2.99191632]
[1680636820418,0.08089185,28119.0,28118.0,2.99203632]
[1680636820812,0.08089185,28119.0,28118.0,2.99209632]
[1680636821958,0.08089185,28119.0,28118.0,3.24689117]
[1680636822809,0.02299,28120.0,28119.0,0.85479]
[1680636823031,0.02299,28120.0,28119.0,2.05578889]
[1680636823259,0.02299,28120.0,28119.0,2.22900889]
[1680636823940,0.02299,28120.0,28119.0,1.97370366]
[1680636825281,0.02299,28120.0,28119.0,2.00170366]
[1680636825500,0.02299,28120.0,28119.0,1.97370366]
[1680636825721,0.02299,28120.0,28119.0,2.00170366]
[1680636826231,0.02299,28120.0,28119.0,2.37882535]
[1680636826675,0.02299,28120.0,28119.0,2.37942535]
[1680636828762,0.02299,28120.0,28119.0,2.20162535]
[1680636829866,0.02299,28120.0,28119.0,2.19312535]
[1680636830113,0.02299,28120.0,28119.0,2.6570406]
[1680636830305,0.02299,28120.0,28119.0,2.19312535]
[1680636830525,0.02299,28120.0,28119.0,1.81600366]
[1680636830743,0.02299,28120.0,28119.0,2.19312535]
[1680636831484,0.02299,28120.0,28119.0,2.16512535]
[1680636831723,0.02299,28120.0,28119.0,2.19590949]
[1680636831946,0.02299,28120.0,28119.0,2.11501949]
[1680636832174,0.02299,28120.0,28119.0,1.97020227]
[1680636832412,0.41209321,28120.0,28119.0,0.58790556]
[1680636832639,0.41260321,28120.0,28119.0,0.58526556]
[1680636833101,0.41260321,28120.0,28119.0,0.55732556]
[1680636833331,0.41260321,28120.0,28119.0,0.58532556]
[1680636833828,0.0326,28120.0,28119.0,0.60310656]
[1680636834057,0.03209,28120.0,28119.0,0.60310656]
[1680636834517,0.03209,28120.0,28119.0,0.57510656]
[1680636834743,0.0326,28120.0,28119.0,0.61160656]
[1680636834967,0.0326,28120.0,28119.0,0.58360656]
[1680636835197,0.0326,28120.0,28119.0,0.61160656]
[1680636835425,0.0326,28120.0,28119.0,0.58360656]
[1680636835654,0.0326,28120.0,28119.0,0.61160656]
[1680636835871,0.0326,28120.0,28119.0,0.58360656]
[1680636836095,0.0326,28120.0,28119.0,0.61160656]
[1680636836557,0.0326,28120.0,28119.0,0.58360656]
[1680636837180,0.0326,28120.0,28119.0,0.81941615]
[1680636837471,0.03209,28120.0,28119.0,0.84741615]
[1680636837713,0.03209,28120.0,28119.0,0.81941615]
[1680636837903,0.03209,28120.0,28119.0,0.84741615]
[1680636838126,0.0326,28120.0,28119.0,0.84741615]
[1680636841010,0.0326,28120.0,28119.0,0.81941615]
[1680636841242,0.0326,28120.0,28119.0,0.84741615]
[1680636841715,0.03209,28120.0,28119.0,0.84741615]
[1680636843052,0.03209,28120.0,28119.0,1.13544656]
[1680636843740,0.03209,28120.0,28119.0,1.48146583]
[1680636843965,0.03209,28120.0,28119.0,1.13544656]
[1680636845133,0.03209,28120.0,28119.0,1.39062934]
[1680636845861,0.03197714,28120.0,28119.0,1.39062934]
[1680636846317,0.03197714,28120.0,28119.0,1.75226518]
[1680636846847,0.02287714,28120.0,28119.0,1.75226518]
[1680636847299,0.02287714,28120.0,28119.0,1.39062934]
[1680636847531,0.02287714,28120.0,28119.0,1.81192934]
[1680636847756,0.02287714,28120.0,28119.0,1.52874656]
[1680636848903,0.02287714,28120.0,28119.0,1.55674656]
[1680636849107,0.02287714,28120.0,28119.0,1.52874656]
[1680636849325,0.02287714,28120.0,28119.0,1.55674656]
[1680636850003,0.02287714,28120.0,28119.0,1.61227595]
[1680636850475,0.02287714,28120.0,28119.0,1.55674656]
[1680636850705,0.02287714,28120.0,28119.0,1.61227503]
[1680636851895,0.02287714,28120.0,28119.0,1.88427503]
[1680636852118,0.02287714,28120.0,28119.0,1.91227503]
[1680636852349,0.02287714,28120.0,28119.0,1.88427503]
[1680636852575,0.02287714,28120.0,28119.0,1.91227503]
[1680636854195,0.02287714,28120.0,28119.0,2.20153762]
[1680636854681,0.02287714,28120.0,28119.0,2.17371762]
[1680636854899,0.02287714,28120.0,28119.0,2.4402823]
[1680636855124,0.02287714,28120.0,28119.0,2.17353762]
[1680636855339,0.02287714,28120.0,28119.0,2.14618915]
[1680636855929,0.02287714,28120.0,28119.0,2.11818915]
[1680636856148,0.02287714,28120.0,28119.0,2.14618915]
[1680636857950,0.02287714,28120.0,28119.0,2.14600915]
[1680636858192,0.02287714,28120.0,28119.0,2.14618915]
[1680636858427,0.02287714,28120.0,28119.0,2.20171927]
[1680636858653,0.02287714,28120.0,28119.0,2.21221927]
[1680636858874,0.02287714,28120.0,28119.0,2.15668915]
[1680636859596,0.02287714,28120.0,28119.0,2.21221955]
[1680636860334,0.02287714,28120.0,28119.0,2.15668915]
[1680636860818,0.02287714,28120.0,28119.0,2.15650915]
[1680636861039,0.02287714,28120.0,28119.0,2.15656915]
[1680636861253,0.02287714,28120.0,28119.0,2.15668915]
[1680636861482,0.02287714,28120.0,28119.0,2.21221991]
[1680636862053,0.02287714,28120.0,28119.0,1.83831991]
[1680636862289,0.02287714,28120.0,28119.0,1.06726391]
[1680636862525,0.02287714,28120.0,28119.0,1.3007339]
[1680636862954,0.02287714,28120.0,28119.0,1.04509115]
[1680636863173,0.03197714,28120.0,28119.0,1.06287215]
[1680636864071,0.03197714,28120.0,28119.0,1.05287215]
[1680636866131,0.03197714,28120.0,28119.0,1.05293215]
[1680636867024,0.03197714,28120.0,28119.0,1.01939415]
[1680636867533,0.03197714,28120.0,28119.0,1.05286115]
[1680636868304,0.03197714,28120.0,28119.0,0.61359856]
[1680636868608,0.03197714,28120.0,28119.0,1.45040435]
[1680636868811,0.03197714,28120.0,28119.0,1.1949416]
[1680636869568,0.03197714,28120.0,28119.0,1.01906131]
[1680636869776,0.02287714,28120.0,28119.0,1.01906131]
[1680636870238,0.02287714,28120.0,28119.0,1.39296131]
[1680636872380,0.02287714,28120.0,28119.0,1.80346061]
[1680636872605,0.02287714,28120.0,28119.0,1.78180823]
[1680636872844,0.02287714,28120.0,28119.0,1.39290131]
[1680636873070,0.02287714,28120.0,28119.0,1.82651655]
[1680636874963,0.02287714,28120.0,28119.0,1.39290131]
[1680636875192,0.02287714,28120.0,28119.0,1.85288297]
[1680636877760,0.02287714,28120.0,28119.0,1.59742022]
[1680636879110,0.02287714,28120.0,28119.0,1.13743856]
[1680636879474,0.02287714,28120.0,28119.0,1.57657091]
[1680636879680,0.02287714,28120.0,28119.0,1.13743856]
[1680636880898,0.02287714,28120.0,28119.0,1.56457217]
[1680636881323,0.02287714,28120.0,28119.0,1.13743856]
[1680636881997,0.02287714,28120.0,28119.0,1.54001885]
[1680636882141,0.03197714,28120.0,28119.0,1.13743856]
[1680636882338,0.02287714,28120.0,28119.0,1.13743856]
[1680636882570,0.02287714,28120.0,28119.0,1.57009096]
[1680636882787,0.02287714,28120.0,28119.0,1.19296927]
[1680636882992,0.02287714,28120.0,28119.0,1.49296927]
[1680636883402,0.02287714,28120.0,28119.0,1.46496927]
[1680636883604,0.02287714,28120.0,28119.0,1.49296927]
[1680636883996,0.02287714,28120.0,28119.0,1.51075593]
[1680636884635,0.02277066,28120.0,28119.0,1.48275593]
[1680636884860,0.02277066,28120.0,28119.0,1.51075593]
[1680636886202,0.02277066,28120.0,28119.0,1.50025593]
[1680636886427,0.02277066,28120.0,28119.0,1.69879525]
[1680636886655,0.02277066,28120.0,28119.0,2.0675478]
[1680636886870,0.02277066,28120.0,28119.0,1.69029525]
[1680636887321,0.02277066,28120.0,28119.0,1.67251425]
[1680636887554,0.02277066,28120.0,28119.0,1.33904725]
[1680636887829,0.02277066,28120.0,28119.0,0.54329056]
[1680636888054,0.49925687,28120.0,28119.0,0.54329056]
[1680636888291,0.49925687,28120.0,28119.0,0.77088037]
[1680636888521,0.49925687,28120.0,28119.0,0.79888037]
[1680636888746,0.03238066,28120.0,28119.0,0.79888037]
[1680636888958,0.03187066,28120.0,28119.0,0.77088037]
[1680636889188,0.03238066,28120.0,28119.0,0.79888037]
[1680636889417,0.03238066,28120.0,28119.0,0.77938037]
[1680636889882,0.03238066,28120.0,28119.0,0.55185056]
[1680636890448,0.07624634,28120.0,28119.0,0.19864]
[1680636890680,0.03238066,28120.0,28119.0,0.58198468]
[1680636891139,0.03238066,28120.0,28119.0,0.58198235]
[1680636891586,0.03238066,28120.0,28119.0,0.41160799]
[1680636891815,0.03238066,28120.0,28119.0,0.36897584]
[1680636892707,0.03238066,28120.0,28119.0,0.58194383]
[1680636893632,0.03187066,28120.0,28119.0,0.58194383]
[1680636893886,0.03187066,28120.0,28119.0,0.19833584]
[1680636894137,0.03187066,28120.0,28119.0,0.41130383]
[1680636894358,0.03187066,28120.0,28119.0,0.19833584]
[1680636895428,0.03238066,28120.0,28119.0,0.19833584]
[1680636897603,0.03139785,28120.0,28119.0,0.19833584]
[1680636898126,0.03139785,28120.0,28119.0,0.1556972]
[1680636898336,0.03139785,28120.0,28119.0,0.32603304]
[1680636898548,0.03139785,28120.0,28119.0,0.1556972]
[1680636898992,0.03139785,28120.0,28119.0,0.32603304]
[1680636899858,0.03139785,28120.0,28119.0,0.1556972]
[1680636900769,0.03139785,28120.0,28119.0,0.32603304]
[1680636901877,0.03139785,28120.0,28119.0,0.19833584]
[1680636902105,0.03139785,28120.0,28119.0,0.44382583]
[1680636902330,0.03139785,28120.0,28119.0,1.22587513]
[1680636902547,0.03139785,28120.0,28119.0,1.08182029]
[1680636902996,0.03139785,28120.0,28119.0,1.25240029]
[1680636904407,0.03139785,28120.0,28119.0,1.25490029]
[1680636904627,0.03139785,28120.0,28119.0,1.25496029]
[1680636905274,0.03139785,28120.0,28119.0,1.23717929]
[1680636905738,0.03139785,28120.0,28119.0,1.25496029]
[1680636906363,0.03139785,28120.0,28119.0,1.23717929]
[1680636906586,0.03139785,28120.0,28119.0,1.25496029]
[1680636906807,0.02229785,28120.0,28119.0,1.25496029]
[1680636908379,0.02229785,28120.0,28119.0,1.40725866]
[1680636908629,0.02229785,28120.0,28119.0,1.23701088]
[1680636908849,0.02229785,28120.0,28119.0,1.15564927]
[1680636909314,0.02229785,28120.0,28119.0,1.17343027]
[1680636909541,0.02229785,28120.0,28119.0,1.15564927]
[1680636910469,0.02229785,28120.0,28119.0,1.11309475]
[1680636910637,0.02229785,28120.0,28119.0,0.73459562]
[1680636911034,0.02229785,28120.0,28119.0,0.76750062]
[1680636911245,0.02229785,28120.0,28119.0,0.73459562]
[1680636913137,0.02229785,28120.0,28119.0,0.76941462]
[1680636913392,0.02229785,28120.0,28119.0,0.76652062]
[1680636913641,0.02229785,28120.0,28119.0,0.9793202]
[1680636913886,0.02229785,28120.0,28119.0,1.29982138]
[1680636914133,0.02229785,28120.0,28119.0,1.0870218]
[1680636914370,0.02229785,28120.0,28119.0,1.29982138]
[1680636915271,0.02229785,28120.0,28119.0,1.31760238]
[1680636915478,0.02229785,28120.0,28119.0,1.16712155]
[1680636916904,0.02229785,28120.0,28119.0,0.99687649]
[1680636917131,0.02229785,28120.0,28119.0,0.79660187]
[1680636917355,0.02229785,28120.0,28119.0,0.8393321]
[1680636918437,0.02229785,28120.0,28119.0,1.2132321]
[1680636918931,0.02229785,28120.0,28119.0,1.04910179]
[1680636919602,0.02229785,28120.0,28119.0,0.76164698]
[1680636919837,0.02229785,28120.0,28119.0,0.79276398]
[1680636921375,0.02229785,28120.0,28119.0,0.79258398]
[1680636921811,0.0091,28122.0,28119.0,0.46270773]
[1680636922043,0.0091,28122.0,28121.0,0.38296755]
[1680636922265,0.0091,28122.0,28121.0,0.41766455]
[1680636922484,0.0091,28122.0,28121.0,0.41803675]
[1680636922743,0.009,28122.0,28121.0,0.86735441]
[1680636923184,0.003,28122.0,28121.0,0.54883316]
[1680636923411,0.0091,28125.0,28121.0,0.56183316]
[1680636923715,0.22173549,28131.0,28124.0,0.08510498]
[1680636923912,0.0091,28125.0,28124.0,0.017957]
[1680636924163,0.0045,28125.0,28124.0,0.30619298]
[1680636924382,0.0045,28125.0,28124.0,0.30871298]
[1680636924619,0.0045,28125.0,28124.0,0.38794482]
[1680636925079,0.0045,28125.0,28124.0,0.89265538]
[1680636925300,0.45674686,28135.0,28124.0,0.97776037]
[1680636925301,0.0091,28128.0,28124.0,0.97776037]
[1680636925524,0.003,28125.0,28124.0,0.59049881]
[1680636925716,0.0091,28128.0,28125.0,0.17058]
[1680636925975,0.0091,28128.0,28126.0,0.28654786]
[1680636926201,0.0091,28128.0,28127.0,0.033289]
[1680636926419,0.0121,28128.0,28127.0,0.033289]
[1680636927563,0.0091,28128.0,28127.0,0.033289]
[1680636927758,0.0111,28128.0,28127.0,0.033289]
[1680636927984,0.0091,28128.0,28127.0,0.4731744]
[1680636928184,0.0101,28128.0,28127.0,0.4821744]
[1680636929504,0.0101,28128.0,28127.0,0.4488854]
[1680636929747,0.0101,28128.0,28127.0,0.4810664]
[1680636929968,0.0101,28128.0,28127.0,0.4829754]
[1680636930540,0.0101,28128.0,28127.0,0.4488854]
[1680636931395,0.001,28128.0,28127.0,0.4488854]
[1680636931544,0.001,28128.0,28127.0,0.4823934]
[1680636931878,0.001,28128.0,28127.0,0.4818144]
[1680636934792,0.001,28128.0,28127.0,0.4995904]
[1680636935015,0.001,28128.0,28127.0,0.43099015]
[1680636936654,0.001,28128.0,28127.0,0.65470525]
[1680636936883,0.001,28128.0,28127.0,1.12625832]
[1680636938663,0.001,28128.0,28127.0,0.97376249]
[1680636939362,0.001,28128.0,28127.0,0.044778]
[1680636939589,0.001,28128.0,28127.0,0.0117]
[1680636941394,0.02596176,28128.0,28127.0,0.0117]
[1680636944270,0.05249676,28128.0,28127.0,0.0117]
[1680636944557,0.02596176,28128.0,28127.0,0.0117]
[1680636946499,0.05198976,28128.0,28127.0,0.0117]
[1680636946852,0.02596176,28128.0,28127.0,0.0117]
[1680636948335,0.05152076,28128.0,28127.0,0.009]
[1680636948586,0.02596176,28128.0,28127.0,0.0186]
[1680636948872,0.0258984,28128.0,28127.0,0.0186]
[1680636949116,0.0526194,28128.0,28127.0,0.0186]
[1680636949374,0.0515304,28128.0,28127.0,0.0186]
[1680636950326,0.0526444,28128.0,28127.0,0.0186]
[1680636950858,0.07290884,28128.0,28127.0,0.0186]
[1680636951118,0.0526444,28128.0,28127.0,0.009]
[1680636951414,0.20170776,28128.0,28123.0,0.55317536]
[1680636951652,0.026495,28127.0,28123.0,0.42553458]
[1680636951906,0.19096176,28128.0,28123.0,0.55317536]
[1680636952156,0.025908,28127.0,28123.0,0.55317536]
[1680636952402,0.025764,28126.0,28123.0,0.55317536]
[1680636952663,0.026389,28127.0,28123.0,0.56117536]
[1680636952917,0.001,28127.0,28123.0,0.56117536]
[1680636953193,0.027645,28127.0,28123.0,0.56117536]
[1680636953673,0.027645,28127.0,28123.0,0.43353458]
[1680636953944,0.001,28127.0,28123.0,0.43353458]
[1680636954210,0.001,28127.0,28123.0,0.56117536]
[1680636954765,0.001,28127.0,28124.0,0.08509386]
[1680636954963,0.108974,28127.0,28124.0,0.08509386]
[1680636955264,0.026455,28126.0,28124.0,0.08509386]
[1680636955494,0.026455,28126.0,28123.0,0.55317536]
[1680636955760,0.08252,28127.0,28123.0,0.55317536]
[1680636956021,0.45,28128.0,28123.0,0.55317536]
[1680636956276,0.025819,28127.0,28124.0,0.08909386]
[1680636956492,0.025819,28127.0,28124.0,0.48240778]
[1680636956688,0.025819,28127.0,28124.0,0.48252778]
[1680636957102,0.025819,28127.0,28124.0,0.47852778]
[1680636957335,0.35471056,28126.0,28124.0,0.08515386]
[1680636957721,0.383967,28125.0,28124.0,0.08509386]
[1680636957938,0.73577756,28125.0,28124.0,0.004]
[1680636958147,0.73577756,28125.0,28123.0,0.08515386]
[1680636958358,0.72861056,28125.0,28124.0,0.004]
[1680636958575,0.74831156,28125.0,28124.0,0.08509386]
[1680636958785,0.74831156,28125.0,28124.0,0.08609386]
[1680636958786,0.75731156,28125.0,28124.0,0.08609386]
[1680636959208,0.75731156,28125.0,28124.0,0.001]
[1680636959458,0.75731156,28125.0,28124.0,0.08609386]
[1680636959684,0.75731156,28125.0,28124.0,0.001]
[1680636960136,0.77973645,28125.0,28124.0,0.001]
[1680636960763,0.77973645,28125.0,28124.0,0.08609386]
[1680636961794,0.86624029,28125.0,28124.0,0.08609386]
[1680636962843,0.86681129,28125.0,28124.0,0.08609386]
[1680636963164,0.78030745,28125.0,28124.0,0.08609386]
[1680636964195,0.78030745,28125.0,28124.0,0.001]
[1680636966650,0.93030745,28125.0,28124.0,0.001]
[1680636966873,1.23030745,28125.0,28124.0,0.001]
[1680636967096,1.39464438,28125.0,28124.0,0.001]
[1680636967946,1.39494438,28125.0,28124.0,0.001]
[1680636969177,1.38594438,28125.0,28120.0,2.07189386]
[1680636969399,0.3739,28123.0,28120.0,0.08509386]
[1680636969614,0.74945756,28122.0,28119.0,0.48833747]
[1680636969836,0.11013876,28121.0,28119.0,0.48833747]
[1680636970053,0.019427,28120.0,28119.0,0.48833747]
[1680636970500,0.019427,28120.0,28119.0,0.00018]
[1680636970729,0.74803756,28120.0,28117.0,0.08527386]
[1680636970952,0.74861456,28119.0,28117.0,0.47871353]
[1680636971172,0.020161,28118.0,28117.0,0.47877353]
[1680636971390,0.74877156,28118.0,28117.0,0.47877353]
[1680636971614,0.72861056,28118.0,28117.0,0.39367967]
[1680636972056,0.72861056,28118.0,28117.0,0.00018]
[1680636972282,0.74875456,28118.0,28116.0,0.08527386]
[1680636972513,0.80361602,28118.0,28116.0,0.08527386]
[1680636972747,0.020485,28117.0,28116.0,0.00018]
[1680636972967,0.74984356,28117.0,28115.0,0.08527386]
[1680636973221,0.020307,28116.0,28115.0,0.08509386]
[1680636973444,0.84912186,28116.0,28114.0,0.41760771]
[1680636973677,0.37522556,28115.0,28114.0,0.00018]
[1680636973935,0.72861056,28115.0,28113.0,0.43157847]
[1680636974172,0.07288206,28114.0,28113.0,0.43157847]
[1680636974620,0.07288206,28114.0,28113.0,0.00018]
[1680636974853,0.07288206,28114.0,28112.0,0.39191491]
[1680636975265,0.09182207,28114.0,28112.0,0.39191491]
[1680636975502,0.09382207,28114.0,28112.0,0.39191491]
[1680636975735,0.82243263,28114.0,28112.0,0.39191491]
[1680636975954,0.82043263,28114.0,28112.0,0.39191491]
[1680636976171,0.018985,28113.0,28112.0,0.39191491]
[1680636976383,0.82143263,28114.0,28112.0,0.39191491]
[1680636976606,0.020607,28113.0,28112.0,0.39191491]
[1680636976823,0.03590993,28113.0,28112.0,0.39191491]
[1680636977729,0.80149262,28114.0,28112.0,0.39191491]
[1680636977951,0.001,28113.0,28112.0,0.39191491]
[1680636978545,0.021422,28113.0,28112.0,0.39191491]
[1680636979128,0.001,28113.0,28112.0,0.39191491]
[1680636979959,0.020696,28113.0,28112.0,0.39191491]
[1680636980173,0.001,28113.0,28112.0,0.00018]
[1680636980447,0.022208,28113.0,28111.0,0.00018]
[1680636980657,0.001,28113.0,28111.0,0.00018]
[1680636981073,0.72861056,28114.0,28111.0,0.00018]
[1680636981295,0.001,28113.0,28111.0,0.3561735]
[1680636981692,0.72861056,28114.0,28111.0,0.3561735]
[1680636981910,0.82028562,28114.0,28111.0,0.3561735]
[1680636982126,0.020853,28113.0,28111.0,0.3511735]
[1680636982574,0.021853,28113.0,28111.0,0.3511735]
[1680636982785,0.001,28113.0,28111.0,0.3511735]
[1680636982994,0.00681274,28113.0,28111.0,0.3511735]
[1680636985209,0.00681274,28113.0,28110.0,0.27838451]
[1680636985435,0.00681274,28113.0,28110.0,0.27826451]
[1680636985636,0.00681274,28113.0,28110.0,0.6786088]
[1680636985877,0.08945258,28113.0,28110.0,0.6786088]
[1680636986537,0.00581274,28113.0,28110.0,0.6786088]
[1680636986784,0.3739,28110.0,28106.0,0.0209]
[1680636987021,0.15,28106.0,28104.0,0.00227193]
[1680636987248,0.3739,28104.0,28101.0,0.01040184]
[1680636987493,0.019859,28103.0,28102.0,0.37852653]
[1680636987712,0.320159,28103.0,28101.0,0.01040184]
[1680636987936,0.020578,28102.0,28101.0,0.01040184]
[1680636988196,0.020878,28102.0,28101.0,0.01040184]
[1680636988882,0.020878,28102.0,28101.0,0.34277967]
[1680636989760,0.042878,28102.0,28101.0,0.34277967]
[1680636990203,0.03669102,28102.0,28101.0,0.01040184]
[1680636990426,0.0575443,28102.0,28101.0,0.01040184]
[1680636990655,0.0425443,28102.0,28101.0,0.01040184]
[1680636990887,0.0645443,28102.0,28101.0,0.01040184]
[1680636991324,0.0777443,28102.0,28101.0,0.01040184]
[1680636992908,0.15290873,28102.0,28101.0,0.01040184]
[1680636993123,0.13090873,28102.0,28101.0,0.01040184]
[1680636993591,0.13090873,28102.0,28098.0,0.39604993]
[1680636993592,0.00554195,28101.0,28098.0,0.39604993]
[1680636993829,0.0132,28100.0,28098.0,0.39604993]
[1680636994494,0.0132,28100.0,28098.0,0.04699092]
[1680636995162,0.0282,28100.0,28098.0,0.04699092]
[1680636996245,0.03912064,28100.0,28098.0,0.04699092]
[1680636997018,0.02592064,28100.0,28099.0,0.336031]
[1680636997254,0.015,28100.0,28099.0,0.336031]
[1680636997926,0.09404045,28102.0,28099.0,0.336031]
[1680636998380,0.09404045,28102.0,28101.0,0.00042794]
[1680636998595,0.11438945,28102.0,28101.0,0.00042794]
[1680636999269,0.14138945,28102.0,28101.0,0.00042794]
[1680636999495,0.11438945,28102.0,28101.0,0.00042794]
[1680636999761,0.14138945,28102.0,28101.0,0.00042794]
[1680637000424,0.12104045,28102.0,28101.0,0.00042794]
[1680637000652,0.13742143,28102.0,28101.0,0.00042794]
[1680637000875,0.061957,28102.0,28101.0,0.00042794]
[1680637001119,0.0674971,28102.0,28101.0,0.00042794]
[1680637001338,0.0404971,28102.0,28101.0,0.00042794]
[1680637001551,0.0674971,28102.0,28101.0,0.00042794]
[1680637001767,0.14163681,28102.0,28101.0,0.00042794]
[1680637005364,0.15489525,28102.0,28101.0,0.00042794]
[1680637006286,0.14163681,28102.0,28101.0,0.00042794]
[1680637007133,0.14157681,28102.0,28101.0,0.00042794]
[1680637007372,0.0404971,28102.0,28101.0,0.00042794]
[1680637007588,0.0674971,28102.0,28101.0,0.00042794]
[1680637008701,0.062257,28102.0,28095.0,0.00012]
[1680637008925,0.44843174,28101.0,28096.0,0.41491969]
[1680637009154,0.02075,28100.0,28096.0,0.41491969]
[1680637009385,0.02105,28100.0,28096.0,0.41491969]
[1680637009615,0.0003,28100.0,28096.0,0.41491969]
[1680637010539,0.0003,28100.0,28094.0,0.6271225]
[1680637010768,0.14189681,28100.0,28094.0,0.98171306]
[1680637010997,0.14219681,28100.0,28096.0,0.39025847]
[1680637011246,0.0153,28100.0,28096.0,0.39025847]
[1680637011467,0.33978093,28100.0,28096.0,0.39025847]
[1680637011695,0.34178093,28100.0,28096.0,0.39025847]
[1680637011920,0.33978093,28100.0,28096.0,0.39025847]
[1680637012843,0.0003,28100.0,28097.0,0.52547056]
[1680637013070,0.0003,28101.0,28099.0,0.15]
[1680637013319,0.3230583,28112.0,28100.0,1.66702056]
[1680637013547,0.3230583,28112.0,28107.0,0.0843]
[1680637013548,0.00051,28108.0,28107.0,0.0843]
[1680637013763,0.3230583,28112.0,28107.0,0.47702556]
[1680637013991,0.03619,28119.0,28108.0,0.39463756]
[1680637013992,0.00051,28114.0,28108.0,0.39463756]
[1680637014219,0.00051,28114.0,28109.0,0.24649962]
[1680637014220,0.30530992,28114.0,28109.0,0.24649962]
[1680637014444,0.30530992,28114.0,28110.0,0.36321056]
[1680637014671,0.30530992,28114.0,28111.0,0.15]
[1680637014920,0.30530992,28114.0,28111.0,0.32076]
[1680637015118,0.30530992,28114.0,28112.0,0.209541]
[1680637015346,0.30530992,28114.0,28112.0,0.25805316]
[1680637015568,0.30530992,28114.0,28112.0,0.25811316]
[1680637016030,0.00051,28115.0,28112.0,0.17082]
[1680637016277,0.002,28114.0,28112.0,0.17064]
[1680637016508,0.00051,28116.0,28112.0,0.17064]
[1680637016731,0.002,28114.0,28113.0,0.32648732]
[1680637016955,0.34859124,28116.0,28113.0,0.32648732]
[1680637017184,0.002,28115.0,28113.0,0.32648732]
[1680637017629,0.34859124,28116.0,28113.0,0.32648732]
[1680637017846,0.35059124,28116.0,28113.0,0.32648732]
[1680637018767,0.34859124,28116.0,28113.0,0.32648732]
[1680637018987,0.001,28115.0,28113.0,0.33948732]
[1680637019203,0.34808124,28116.0,28113.0,0.32648732]
[1680637019416,0.34908124,28116.0,28113.0,0.33948732]
[1680637019649,0.34808124,28116.0,28113.0,0.32648732]
[1680637019878,0.001,28115.0,28113.0,0.33948732]
[1680637020088,0.34808124,28116.0,28113.0,0.32648732]
[1680637020287,0.34808124,28116.0,28113.0,0.32660732]
[1680637020406,0.33753085,28115.0,28113.0,0.33960732]
[1680637020625,0.33753085,28115.0,28113.0,0.32666732]
[1680637021505,0.33853085,28115.0,28113.0,0.33966732]
[1680637023689,0.02752059,28125.0,28114.0,0.34648206]
[1680637023916,0.69141114,28121.0,28114.0,0.34666206]
[1680637024328,0.83330795,28121.0,28115.0,0.33897499]
[1680637024572,0.36361114,28121.0,28115.0,0.33915499]
[1680637025007,0.36461114,28121.0,28115.0,0.33915499]
[1680637025270,0.50571795,28121.0,28115.0,0.33909499]
[1680637025489,0.57406874,28121.0,28115.0,0.33909499]
[1680637025912,0.57385874,28121.0,28115.0,0.33915499]
[1680637027065,0.57385874,28121.0,28116.0,0.42381088]
[1680637027288,0.43196193,28121.0,28116.0,0.42399088]
[1680637027501,0.43296193,28121.0,28116.0,0.42399088]
[1680637027721,0.43196193,28121.0,28116.0,0.42399088]
[1680637027942,0.43296193,28121.0,28116.0,0.43799088]
[1680637028166,0.43196193,28121.0,28116.0,0.42399088]
[1680637029036,0.43296193,28121.0,28116.0,0.43099088]
[1680637029683,0.43296193,28121.0,28120.0,100.0]
[1680637029909,0.43317193,28121.0,28120.0,100.0]
[1680637030126,0.44637193,28121.0,28120.0,100.0]
[1680637030351,0.74637193,28121.0,28120.0,100.0]
[1680637030556,0.73317193,28121.0,28120.0,100.0]